fUSD/lending_fUSD_20250128
["ID","MTS","AMOUNT","RATE_DAILY","PERIOD"]
[350652061,1738029032321,-3028.96115683,0.00018205,2]
[350652062,1738029032332,-2535.45362981,0.00018205,2]
[350652063,1738029032343,-1557.97931116,0.00018205,2]
[350652064,1738029032354,-249.4381117,0.00018205,2]
[350652065,1738029032363,-221.2986,0.00018205,2]
[350652066,1738029032374,-312.2724,0.00018205,2]
[350652067,1738029032383,-5005.40850785,0.00018306,2]
[350652068,1738029032392,-250.0,0.00018445,2]
[350652069,1738029032402,-200.0,0.00018551,2]
[350652070,1738029032411,-173.68,0.000186,2]
[350652071,1738029032420,-571.84,0.00018625,2]
[350652072,1738029032429,-924.72,0.00018644,2]
[350652073,1738029032439,-470.30364503,0.00018653,2]
[350652074,1738029032448,-18737.92772788,0.00018654,2]
[350652075,1738029032459,-5162.07227212,0.00018654,2]
[350652076,1738029032468,-169.74,0.00018666,2]
[350652077,1738029032477,-610.2913,0.000187,2]
[350652078,1738029032486,-1281.27241119,0.000187,2]
[350652079,1738029032495,-205.0642,0.000187,2]
[350652080,1738029032504,-386.21492672,0.000187,2]
[350652081,1738029032513,-604.19720257,0.000187,3]
[350652082,1738029032522,-2680.33984117,0.000187,2]
[350652083,1738029032531,-641.89,0.00018714,2]
[350652084,1738029032540,-293.03,0.00018732,30]
[350652085,1738029032549,-2000.0,0.00018751,2]
[350652086,1738029032558,-271.3462316,0.00018773,2]
[350652087,1738029032567,-503.18523784,0.00018773,2]
[350652088,1738029032577,-160.33506954,0.0001879,2]
[350652089,1738029032585,-501.0535304,0.00018799,2]
[350652090,1738029032594,-504.70727176,0.00018799,2]
[350652091,1738029032603,-500.69984161,0.00018799,2]
[350652092,1738029032612,-200.0,0.00018799,2]
[350652093,1738029032622,-200.0,0.00018799,2]
[350652094,1738029032632,-177.96802691,0.00018799,2]
[350652095,1738029032641,-717.09,0.00018799,2]
[350652096,1738029032650,-717.09,0.00018799,2]
[350652097,1738029032659,-717.09,0.00018799,2]
[350652098,1738029032668,-717.09,0.00018799,2]
[350652099,1738029032677,-717.09,0.00018799,2]
[350652100,1738029032686,-717.09,0.00018799,2]
[350652101,1738029032695,-717.09,0.00018799,2]
[350652102,1738029032704,-717.09,0.00018799,2]
[350652103,1738029032714,-717.09,0.00018799,2]
[350652104,1738029032723,-717.09,0.00018799,2]
[350652105,1738029032732,-717.09,0.00018799,2]
[350652106,1738029032741,-717.09,0.00018799,2]
[350652107,1738029032751,-717.09,0.00018799,2]
[350652108,1738029032760,-717.09,0.00018799,2]
[350652109,1738029032770,-717.09,0.00018799,2]
[350652110,1738029032779,-717.09,0.00018799,2]
[350652111,1738029032789,-717.09,0.00018799,2]
[350652112,1738029032798,-717.09,0.00018799,2]
[350652113,1738029032808,-717.09,0.00018799,2]
[350652114,1738029032817,-717.09,0.00018799,2]
[350652115,1738029032826,-717.09,0.00018799,2]
[350652116,1738029032835,-717.09,0.00018799,2]
[350652117,1738029032845,-717.09,0.00018799,2]
[350652118,1738029032855,-717.3024482,0.00018799,2]
[350652119,1738029032866,-200.8530457,0.00018799,2]
[350652120,1738029032876,-335.48501096,0.00018799,2]
[350652121,1738029032884,-297.3880877,0.00018799,2]
[350652122,1738029032894,-225.90164203,0.00018799,2]
[350652123,1738029032903,-500.0,0.00018799,2]
[350652124,1738029032912,-500.0,0.00018799,2]
[350652125,1738029032922,-500.0,0.00018799,2]
[350652126,1738029032931,-500.0,0.00018799,2]
[350652127,1738029032941,-500.0,0.00018799,2]
[350652128,1738029032950,-500.0,0.00018799,2]
[350652129,1738029032961,-500.0,0.00018799,2]
[350652130,1738029032976,-500.0,0.00018799,2]
[350652131,1738029032986,-500.0,0.00018799,2]
[350652132,1738029032995,-500.0,0.00018799,2]
[350652133,1738029033005,-500.0,0.00018799,2]
[350652134,1738029033015,-578.87034754,0.00018799,2]
[350652135,1738029033025,-500.0,0.00018799,2]
[350652136,1738029033034,-272.1138181,0.00018799,2]
[350652137,1738029033044,-485.54649868,0.00018799,2]
[350652138,1738029033054,-839.87,0.00018799,2]
[350652139,1738029033064,-839.87,0.00018799,2]
[350652140,1738029033073,-839.87,0.00018799,2]
[350652141,1738029033083,-839.87,0.00018799,2]
[350652142,1738029033093,-839.87,0.00018799,2]
[350652143,1738029033102,-839.87,0.00018799,2]
[350652144,1738029033112,-839.87,0.00018799,2]
[350652145,1738029033123,-839.87,0.00018799,2]
[350652146,1738029033133,-839.87,0.00018799,2]
[350652147,1738029033143,-839.87,0.00018799,2]
[350652148,1738029033154,-839.87,0.00018799,2]
[350652149,1738029033163,-163.07921591,0.00018799,2]
[350652150,1738029033173,-839.87,0.00018799,2]
[350652151,1738029033182,-839.87,0.00018799,2]
[350652152,1738029033191,-839.87,0.00018799,2]
[350652153,1738029033201,-839.87,0.00018799,2]
[350652154,1738029033210,-839.87,0.00018799,2]
[350652155,1738029033220,-839.87,0.00018799,2]
[350652156,1738029033230,-839.87,0.00018799,2]
[350652157,1738029033239,-839.87,0.00018799,2]
[350652158,1738029033248,-839.87,0.00018799,2]
[350652159,1738029033258,-839.87,0.00018799,2]
[350652160,1738029033267,-839.87,0.00018799,2]
[350652161,1738029033276,-839.87,0.00018799,2]
[350652162,1738029033285,-839.89373783,0.00018799,2]
[350652163,1738029033295,-500.0,0.00018799,2]
[350652164,1738029033304,-500.0,0.00018799,2]
[350652165,1738029033314,-500.0,0.00018799,2]
[350652166,1738029033323,-500.0,0.00018799,2]
[350652167,1738029033333,-500.0,0.00018799,2]
[350652168,1738029033342,-500.0,0.00018799,2]
[350652169,1738029033351,-500.0,0.00018799,2]
[350652170,1738029033361,-500.0,0.00018799,2]
[350652171,1738029033372,-500.0,0.00018799,2]
[350652172,1738029033381,-542.37384004,0.00018799,2]
[350652173,1738029033390,-500.0,0.00018799,2]
[350652174,1738029033399,-121.71544992,0.00018799,2]
[350652175,1738029033412,-378.28455008,0.00018799,2]
[350652176,1738029033421,-611.2850023,0.00018799,2]
[350652177,1738029033430,-2298.73898676,0.000188,2]
[350652180,1738029037369,-150.0,0.00016685,2]
[350652181,1738029037379,-151.33,0.00016685,2]
[350652182,1738029037389,-245.85977324,0.0001879,7]
[350652183,1738029037401,-896.4525,0.0001879,7]
[350652184,1738029037412,-1860.04352126,0.0001879,7]
[350652185,1738029037424,-132397.85347164,0.0001879,7]
[350652186,1738029037435,-8073.93379679,0.0001879,7]
[350652187,1738029037474,-378.00513087,0.0001879,7]
[350652188,1738029037485,-717.33266096,0.0001879,7]
[350652189,1738029037552,-1536.27015992,0.0001879,7]
[350652190,1738029037563,-864.14244769,0.0001879,7]
[350652191,1738029037574,-3600.0,0.0001879,7]
[350652192,1738029037585,-1178.55177677,0.0001879,7]
[350652193,1738029037629,-53969.3780223,0.0001879,7]
[350652194,1738029037641,-630.69068571,0.0001879,7]
[350652196,1738029037795,-4087.13897112,0.0001879,7]
[350652199,1738029037807,-600.47872081,0.0001879,7]
[350652201,1738029037819,-1814.03961151,0.0001879,7]
[350652216,1738029039521,-167.02,0.00016685,2]
[350652217,1738029039530,-180.302,0.00016685,2]
[350652218,1738029039540,-253305.89239364,0.0001879,7]
[350652219,1738029039551,-102389.7025773,0.0001879,7]
[350652220,1738029039562,-28049.34219364,0.0001879,7]
[350652221,1738029039573,-117523.6734315,0.0001879,7]
[350652222,1738029039584,-806.9215952,0.0001879,7]
[350652223,1738029039596,-4000.39879996,0.0001879,7]
[350652224,1738029039607,-2276.90767204,0.0001879,7]
[350652225,1738029039620,-17223.46365979,0.0001879,7]
[350652226,1738029039632,-606.16209635,0.0001879,7]
[350652227,1738029039877,-177348.5542833,0.0001879,7]
[350652228,1738029039887,-719763.84159602,0.000188,2]
[350652229,1738029039897,-7111.59425562,0.000188,2]
[350652230,1738029039906,-9780776.01004316,0.000188,2]
[350652231,1738029039918,-4752.07972932,0.000188,2]
[350652232,1738029039933,-3541.76936837,0.000188,2]
[350652233,1738029039945,-659.20571538,0.000188,2]
[350652234,1738029039957,-29553.41059066,0.000188,2]
[350652235,1738029039969,-272.28422515,0.000188,2]
[350652237,1738029039982,-586.89997212,0.000188,2]
[350652239,1738029039994,-1125.077993,0.000188,2]
[350652242,1738029040006,-1660.07913423,0.000188,2]
[350652244,1738029040018,-1378.14448938,0.000188,2]
[350652246,1738029040029,-1693.3984075,0.000188,2]
[350652256,1738029042511,-804.4,0.000188,2]
[350652257,1738029042579,-1836.16629,0.000188,2]
[350652258,1738029042590,-5308.03231515,0.000188,2]
[350652259,1738029042602,-728.39843879,0.000188,2]
[350652260,1738029042646,-84860.52425877,0.000188,2]
[350652261,1738029042658,-20104.5357876,0.000188,2]
[350652262,1738029042715,-27400.78050577,0.000188,2]
[350652263,1738029042783,-26295.82231094,0.000188,2]
[350652269,1738029045459,-6597.082116,0.000188,2]
[350652271,1738029045471,-300.0,0.000188,2]
[350652272,1738029045541,-45738.09601876,0.000188,2]
[350652273,1738029045588,-2438.43008209,0.000188,2]
[350652274,1738029045600,-3352.18442827,0.000188,2]
[350652275,1738029045611,-679.40528476,0.000188,2]
[350652276,1738029045754,-322.8916,0.000188,2]
[350652277,1738029045768,-325.91,0.000188,2]
[350652278,1738029045785,-11126.6045341,0.000188,2]
[350652279,1738029045796,-2847.23246661,0.000188,2]
[350652280,1738029045808,-1697.18760819,0.000188,2]
[350652281,1738029045819,-44367.03805936,0.000188,2]
[350652282,1738029045868,-678.14139368,0.000188,2]
[350652283,1738029045880,-500.0,0.000188,2]
[350652284,1738029045892,-6149.12970289,0.000188,2]
[350652285,1738029045903,-3092.969476,0.000188,2]
[350652286,1738029045916,-3033.39444197,0.000188,2]
[350652287,1738029045927,-1220.31603624,0.000188,2]
[350652288,1738029045951,-485.22732997,0.000188,2]
[350652440,1738029063506,200.0,0.000119,2]
[350652441,1738029095803,200.0,0.00011884,2]
[350652442,1738029096144,200.0,0.00011912,2]
[350652443,1738029124231,948.12306972,0.00011846,2]
[350652444,1738029124559,948.12306972,0.00011897,2]
[350652445,1738029124858,948.12306972,0.00011838,2]
[350652446,1738029125245,948.12306972,0.00011829,2]
[350652447,1738029125529,948.12306972,0.00011851,2]
[350652448,1738029132020,200.0,0.00011867,2]
[350652449,1738029132226,200.0,0.00011836,2]
[350652450,1738029132512,200.0,0.00011875,2]
[350652451,1738029191175,10000.0,0.00012,2]
[350652453,1738029700642,152.77,0.00010137,2]
[350652455,1738029832436,217.012811,0.00021,120]
[350652456,1738029841414,366.0,0.00021,120]
[350652488,1738030231640,-688.68723581,0.000132,2]
[350652489,1738030231676,-4643.59093733,0.000132,2]
[350652490,1738030231686,-150.0,0.00013846,2]
[350652491,1738030231695,-150.0,0.0001452,2]
[350652492,1738030231705,-150.0,0.00014713,2]
[350652493,1738030231714,-654.65,0.00015785,2]
[350652494,1738030231723,-150.0,0.00016,2]
[350652495,1738030231732,-1179.211,0.00016151,2]
[350652496,1738030231741,-500.0,0.00016164,2]
[350652497,1738030231751,-150.0,0.00016499,2]
[350652498,1738030231760,-300.0,0.00016499,2]
[350652499,1738030231769,-900.0,0.000165,2]
[350652500,1738030231778,-900.0,0.000165,2]
[350652501,1738030231787,-900.0,0.000165,2]
[350652502,1738030231796,-900.0,0.000165,2]
[350652503,1738030231805,-900.0,0.000165,2]
[350652504,1738030231814,-900.0,0.000165,2]
[350652505,1738030231823,-900.0,0.000165,2]
[350652506,1738030231832,-900.0,0.000165,2]
[350652507,1738030231841,-900.0,0.000165,2]
[350652508,1738030231850,-900.0,0.000165,2]
[350652509,1738030231859,-150.292,0.00016685,2]
[350652510,1738030231868,-250.0,0.00016685,2]
[350652511,1738030231877,-246.422,0.00016685,2]
[350652512,1738030231886,-150.134,0.00016685,2]
[350652513,1738030231895,-284.258,0.00016685,2]
[350652514,1738030231904,-176.14,0.00016712,2]
[350652515,1738030231913,-250.0,0.00016773,2]
[350652516,1738030231922,-23890.0,0.00016804,2]
[350652517,1738030231931,-652.5,0.00016854,2]
[350652518,1738030231940,-200.0,0.00016879,2]
[350652519,1738030231949,-200.0,0.00016912,2]
[350652520,1738030231959,-1000.7,0.00016929,2]
[350652521,1738030231968,-4477.76,0.0001694,2]
[350652522,1738030231977,-278.37,0.00016965,30]
[350652523,1738030231986,-318.78,0.00017266,2]
[350652524,1738030231995,-318.78,0.00017271,2]
[350652525,1738030232005,-318.78,0.00017275,2]
[350652526,1738030232014,-318.78,0.0001728,2]
[350652527,1738030232023,-318.78,0.00017284,2]
[350652528,1738030232033,-318.78,0.00017289,2]
[350652529,1738030232042,-318.78,0.00017293,2]
[350652530,1738030232052,-318.78,0.00017298,2]
[350652531,1738030232061,-318.78,0.00017302,2]
[350652532,1738030232071,-318.78,0.00017307,2]
[350652533,1738030232080,-318.78,0.00017311,2]
[350652534,1738030232088,-318.78,0.00017316,2]
[350652535,1738030232097,-318.78,0.00017321,2]
[350652536,1738030232106,-318.78,0.00017325,2]
[350652537,1738030232115,-318.78,0.0001733,2]
[350652538,1738030232124,-318.78,0.00017334,2]
[350652539,1738030232133,-318.78,0.00017339,2]
[350652540,1738030232142,-318.78,0.00017343,2]
[350652541,1738030232152,-318.78,0.00017348,2]
[350652542,1738030232161,-318.78,0.00017352,2]
[350652543,1738030232171,-250.0,0.00017361,2]
[350652544,1738030232181,-487.51,0.00017444,2]
[350652545,1738030232191,-500.0,0.00017502,2]
[350652547,1738030232201,-214.76,0.00017554,2]
[350652549,1738030232210,-1000.0,0.00017606,2]
[350652551,1738030232219,-1000.0,0.00017699,2]
[350652552,1738030232229,-976.08,0.000177,31]
[350652553,1738030232238,-976.08,0.000177,31]
[350652554,1738030232247,-976.08,0.000177,31]
[350652555,1738030232256,-976.08,0.000177,31]
[350652556,1738030232265,-976.08,0.000177,31]
[350652558,1738030232275,-976.08,0.000177,31]
[350652560,1738030232284,-976.08,0.000177,31]
[350652562,1738030232293,-976.08,0.000177,31]
[350652563,1738030232303,-976.08,0.000177,31]
[350652564,1738030232315,-976.08,0.000177,31]
[350652565,1738030232324,-976.08,0.000177,31]
[350652566,1738030232333,-976.08,0.000177,31]
[350652567,1738030232342,-976.08,0.000177,31]
[350652568,1738030232353,-976.08,0.000177,31]
[350652569,1738030232362,-976.08,0.000177,31]
[350652570,1738030232371,-976.08,0.000177,31]
[350652571,1738030232380,-3677.26034643,0.00017769,2]
[350652572,1738030232392,-3044.27965357,0.00017769,2]
[350652573,1738030232402,-170.21,0.00017816,2]
[350652574,1738030232411,-150.0,0.00017864,2]
[350652575,1738030232420,-150.0,0.00017864,2]
[350652576,1738030232429,-150.0,0.00017864,2]
[350652577,1738030232438,-150.0,0.00017864,2]
[350652578,1738030232447,-150.0,0.00017864,2]
[350652579,1738030232455,-176.61,0.00017915,2]
[350652580,1738030232464,-150.19,0.00017978,2]
[350652581,1738030232474,-150.0,0.00017978,2]
[350652582,1738030232483,-150.0,0.00017978,2]
[350652583,1738030232491,-1965.4,0.00017978,2]
[350652584,1738030232500,-420.0,0.0001803,2]
[350652585,1738030232509,-654.65,0.00018049,2]
[350652586,1738030232518,-2000.0,0.00018082,2]
[350652587,1738030232527,-150.0,0.00018178,2]
[350652588,1738030232535,-150.0,0.00018178,2]
[350652589,1738030232544,-402.15,0.00018178,2]
[350652590,1738030232554,-216.68323284,0.00018409,2]
[350652591,1738030232562,-694.0,0.00018426,2]
[350652592,1738030232571,-200.0,0.00018445,2]
[350652593,1738030232580,-2003.176,0.00018533,2]
[350652594,1738030232589,-181.11257535,0.00018533,2]
[350652595,1738030232598,-780.27,0.0001855,2]
[350652596,1738030232606,-173.68,0.000186,2]
[350652597,1738030232615,-151.43282614,0.000186,2]
[350652598,1738030232624,-151.43282613,0.00018617,2]
[350652599,1738030232633,-151.43282613,0.00018633,2]
[350652600,1738030232642,-151.43282613,0.0001865,2]
[350652601,1738030232650,-151.43282613,0.00018667,2]
[350652602,1738030232660,-151.43282613,0.00018683,2]
[350652603,1738030232669,-438.12,0.00018686,2]
[350652604,1738030232678,-438.12,0.00018686,2]
[350652605,1738030232687,-438.12,0.00018686,2]
[350652606,1738030232696,-26.26806128,0.00018686,2]
[350652607,1738030232707,-123.73193872,0.00018686,2]
[350652608,1738030232716,-1000.0,0.00018699,2]
[350652609,1738030232725,-282.1648,0.000187,2]
[350652610,1738030232734,-7610.02191012,0.000187,2]
[350652611,1738030232745,-10842.04758988,0.000187,2]
[350652612,1738030232754,-5000.0,0.000187,2]
[350652613,1738030232763,-220.0,0.000187,2]
[350652614,1738030232772,-1749.18861899,0.000187,2]
[350652615,1738030232781,-3402.56644113,0.000187,2]
[350652616,1738030232794,-3470.94078903,0.000187,2]
[350652617,1738030232804,-490.62,0.000187,2]
[350652618,1738030232815,-37461.52146984,0.000187,2]
[350652619,1738030232824,-4498.3841,0.000187,2]
[350652620,1738030232833,-151.43282613,0.000187,2]
[350652621,1738030232842,-2000.0,0.00018751,2]
[350652622,1738030232851,-4830.0,0.00018767,2]
[350652623,1738030232860,-502.07438937,0.00018773,2]
[350652624,1738030232869,-500.0,0.00018773,2]
[350652625,1738030232877,-190.26137434,0.0001879,2]
[350652626,1738030232886,-15147.01745568,0.00018797,2]
[350652627,1738030232896,-315.66881333,0.00018799,2]
[350652628,1738030232905,-500.0,0.00018799,2]
[350652629,1738030232914,-500.0,0.00018799,2]
[350652630,1738030232924,-524.90841426,0.00018799,2]
[350652631,1738030232933,-208.4937213,0.00018799,2]
[350652632,1738030232943,-500.0,0.00018799,2]
[350652633,1738030232952,-437.00336858,0.00018799,2]
[350652634,1738030232961,-459.58779673,0.00018799,2]
[350652635,1738030232970,-500.0,0.00018799,2]
[350652636,1738030232979,-500.0,0.00018799,2]
[350652637,1738030232987,-500.0,0.00018799,2]
[350652638,1738030232997,-500.0,0.00018799,2]
[350652639,1738030233006,-500.0,0.00018799,2]
[350652640,1738030233015,-500.0,0.00018799,2]
[350652641,1738030233024,-500.0,0.00018799,2]
[350652642,1738030233033,-500.0,0.00018799,2]
[350652643,1738030233042,-500.0,0.00018799,2]
[350652644,1738030233052,-164.80035564,0.00018799,2]
[350652645,1738030233061,-1027.41,0.00018799,2]
[350652646,1738030233070,-1027.41,0.00018799,2]
[350652647,1738030233079,-1027.41,0.00018799,2]
[350652648,1738030233088,-1027.41,0.00018799,2]
[350652649,1738030233098,-1027.41,0.00018799,2]
[350652650,1738030233107,-1027.41,0.00018799,2]
[350652651,1738030233116,-1027.41,0.00018799,2]
[350652652,1738030233126,-1027.41,0.00018799,2]
[350652653,1738030233135,-1027.41,0.00018799,2]
[350652654,1738030233145,-1027.41,0.00018799,2]
[350652655,1738030233154,-1027.41,0.00018799,2]
[350652656,1738030233163,-1027.41,0.00018799,2]
[350652657,1738030233172,-1027.41,0.00018799,2]
[350652658,1738030233181,-1027.41,0.00018799,2]
[350652659,1738030233191,-1027.41,0.00018799,2]
[350652660,1738030233203,-1027.41,0.00018799,2]
[350652661,1738030233212,-1027.41,0.00018799,2]
[350652662,1738030233221,-1027.41,0.00018799,2]
[350652663,1738030233231,-1027.41,0.00018799,2]
[350652664,1738030233240,-1027.41,0.00018799,2]
[350652665,1738030233250,-1027.41,0.00018799,2]
[350652666,1738030233259,-1027.41,0.00018799,2]
[350652667,1738030233269,-1027.41,0.00018799,2]
[350652668,1738030233278,-1027.45169229,0.00018799,2]
[350652669,1738030233287,-500.0,0.00018799,2]
[350652670,1738030233296,-510.1527421,0.00018799,2]
[350652671,1738030233307,-170.41270161,0.00018799,2]
[350652672,1738030233318,-836.0,0.000188,2]
[350652673,1738030233328,-202625.01456377,0.000188,2]
[350652674,1738030233340,-15205.21163731,0.000188,2]
[350652675,1738030233356,-718.0,0.000188,2]
[350652676,1738030233367,-586.83695503,0.000188,2]
[350652677,1738030233379,-456048.05870735,0.000188,2]
[350652678,1738030233393,-7639.59813395,0.000188,2]
[350652679,1738030233404,-2679.1788598,0.000188,2]
[350652680,1738030233415,-1956.94,0.000188,2]
[350652681,1738030233427,-12997.90719082,0.000188,2]
[350652688,1738030237608,-53882.41461505,0.000188,2]
[350652689,1738030237618,-3555.79712781,0.000188,2]
[350652690,1738030237627,-165926.87473544,0.000188,2]
[350652691,1738030237688,-32223.34948295,0.000188,2]
[350652692,1738030237700,-488.45942115,0.000188,2]
[350652693,1738030237711,-670.435461,0.000188,2]
[350652694,1738030237832,-826.5321856,0.000188,2]
[350652695,1738030237912,-282.933,0.000188,2]
[350652696,1738030237924,-100274.11999224,0.000188,2]
[350652833,1738030239623,-2315.9462,0.000188,2]
[350652834,1738030239634,-7492.74809411,0.000188,2]
[350652835,1738030239707,-2434897.48175714,0.000188,2]
[350652836,1738030239718,-1210.55117983,0.000188,2]
[350652837,1738030239729,-5992.79513547,0.000188,2]
[350652838,1738030239899,-13040.97657437,0.000188,2]
[350652839,1738030239911,-9337.25086476,0.000188,2]
[350652840,1738030239973,-1458.84999932,0.000188,2]
[350652841,1738030239984,-683.49040918,0.000188,2]
[350652842,1738030240049,-676.65323616,0.000188,2]
[350652843,1738030240060,-1270.15857547,0.000188,2]
[350652844,1738030240071,-566.84138598,0.000188,2]
[350652935,1738030242907,-749.0,0.000188,2]
[350652936,1738030242917,-1537431.08267659,0.000188,2]
[350652937,1738030242973,-3547.7542258,0.000188,2]
[350652938,1738030243042,-643.3159777,0.000188,2]
[350652956,1738030245620,-4764.73568331,0.000188,2]
[350652957,1738030245631,-1893.69371058,0.000188,2]
[350652958,1738030245691,-875.84898329,0.000188,2]
[350652959,1738030245702,-4720.99310713,0.000188,2]
[350652960,1738030245828,-18566.55176146,0.000188,2]
[350652961,1738030245839,-2743.94689906,0.000188,2]
[350652962,1738030245901,-1057.47868524,0.000188,2]
[350652966,1738030874084,249.88,0.00010137,2]
[350652967,1738030919513,505.1714,0.00021,120]
[350652968,1738031107973,54783.61267974,0.0001,2]
[350652969,1738031127043,213.60150743,0.000108,2]
[350652970,1738031142526,460.6025649,0.00011,2]
[350653003,1738031431796,-550.0,0.00013,2]
[350653005,1738031431806,-150.0,0.00014184,2]
[350653008,1738031431816,-150.0,0.000143,2]
[350653010,1738031431825,-1058.0,0.00014892,2]
[350653011,1738031431835,-600.0,0.00015,2]
[350653012,1738031431844,-300.0,0.00015199,2]
[350653014,1738031431853,-6213.0,0.000152,2]
[350653016,1738031431863,-500.0,0.00016164,2]
[350653018,1738031431873,-546.35412779,0.000163,4]
[350653019,1738031431884,-5383.32018544,0.000163,4]
[350653020,1738031431896,-3104.27952186,0.000163,4]
[350653021,1738031431907,-1643.91621459,0.000163,4]
[350653022,1738031431960,-35077.70032387,0.000163,4]
[350653023,1738031431971,-250.0,0.0001662,2]
[350653024,1738031431981,-420.0,0.00016631,2]
[350653025,1738031431991,-1000.0,0.0001665,2]
[350653026,1738031432001,-171.8,0.000167,2]
[350653027,1738031432011,-176.14,0.00016712,2]
[350653028,1738031432021,-249.88,0.00016813,2]
[350653029,1738031432030,-250.0,0.00016859,2]
[350653030,1738031432040,-200.0,0.00016872,2]
[350653031,1738031432049,-900.0,0.00016938,2]
[350653032,1738031432059,-900.0,0.00016938,2]
[350653033,1738031432068,-900.0,0.00016938,2]
[350653034,1738031432077,-900.0,0.00016938,2]
[350653035,1738031432087,-966.26427992,0.00016938,2]
[350653036,1738031432096,-650.0,0.00017,2]
[350653037,1738031432105,-264.45,0.00017266,30]
[350653038,1738031432115,-517.53,0.00017631,2]
[350653039,1738031432125,-819.99,0.000179,31]
[350653040,1738031432134,-819.99,0.000179,31]
[350653041,1738031432144,-819.99,0.000179,31]
[350653042,1738031432153,-819.99,0.000179,31]
[350653043,1738031432163,-819.99,0.000179,31]
[350653044,1738031432172,-819.99,0.000179,31]
[350653045,1738031432181,-819.99,0.000179,31]
[350653046,1738031432191,-819.99,0.000179,31]
[350653047,1738031432205,-819.99,0.000179,31]
[350653048,1738031432215,-819.99,0.000179,31]
[350653049,1738031432224,-819.99,0.000179,31]
[350653050,1738031432234,-819.99,0.000179,31]
[350653051,1738031432243,-819.99,0.000179,31]
[350653052,1738031432254,-819.99,0.000179,31]
[350653053,1738031432263,-819.99,0.000179,31]
[350653054,1738031432273,-819.99,0.000179,31]
[350653055,1738031432283,-631.30935794,0.000179,2]
[350653056,1738031432293,-5000.0,0.000179,2]
[350653057,1738031432303,-500.0,0.00017973,2]
[350653058,1738031432312,-291.2,0.00017994,2]
[350653059,1738031432322,-11983.18809699,0.00017994,2]
[350653060,1738031432335,-6735.00479282,0.00017994,2]
[350653061,1738031432347,-1651.91617799,0.00017994,2]
[350653062,1738031432359,-1372.6227422,0.00017994,2]
[350653063,1738031432379,-750.37477044,0.00017994,2]
[350653064,1738031432402,-677.65,0.00014566,2]
[350653065,1738031432412,-5197.58111609,0.00017994,2]
[350653066,1738031432425,-1132.87600634,0.00017994,2]
[350653072,1738031437799,-677.65,0.0001683,2]
[350653073,1738031437809,-6667.05196953,0.00017994,2]
[350653074,1738031437820,-1018.53751489,0.00017994,2]
[350653075,1738031437961,-802.2027005,0.00017994,2]
[350653076,1738031438124,-264259.09123384,0.00017994,2]
[350653077,1738031438135,-253.2,0.00017994,2]
[350653137,1738031439936,-814.6,0.00017994,2]
[350653138,1738031439948,-508.65,0.00017994,2]
[350653139,1738031440097,-192845.44962319,0.00017994,2]
[350653140,1738031440107,-4668.55302069,0.00018,4]
[350653141,1738031440116,-21068.52219673,0.00018,2]
[350653142,1738031440207,-14401.48700294,0.00018,2]
[350653163,1738031442809,-487.98,0.00018,2]
[350653164,1738031442820,-505.79,0.00018,2]
[350653165,1738031442916,-744.5,0.00018,2]
[350653166,1738031442973,-562.39668,0.00018,2]